bitfinex-derivatives/quotes_ETHF0:USTF0_20251107
["timestamp","ask_amount","ask_price","bid_price","bid_amount"]
[1762510663054,0.49681282,3280.7,3280.6,0.00330344]
[1762510663455,0.00275282,3280.7,3280.6,3.21110344]
[1762510664757,0.00275282,3280.7,3280.6,3.77370344]
[1762510665258,3.2078,3282.1,3281.0,0.5626]
[1762510665460,0.4939,3281.8,3281.6,3.2078]
[1762510665763,0.49388,3281.9,3281.8,0.49389]
[1762510666055,3.2078,3282.1,3280.9,0.3518]
[1762510666260,0.00457268,3281.8,3281.7,0.5626]
[1762510666457,0.00457268,3281.8,3281.6,3.5596]
[1762510666458,0.00457268,3281.8,3281.2,3.2078]
[1762510666650,0.49394,3281.6,3281.4,0.49395]
[1762510666853,0.00457268,3281.8,3281.5,0.49393]
[1762510667053,0.49847268,3281.8,3281.2,3.2078]
[1762510667354,0.49391,3281.7,3281.6,3.2078]
[1762510667558,0.00457268,3281.8,3281.2,3.2078]
[1762510667759,0.00457268,3281.8,3281.3,0.49397]
[1762510668060,0.49395,3281.4,3281.3,0.49397]
[1762510668258,0.00457268,3281.8,3281.2,3.2078]
[1762510668458,0.49397,3281.4,3281.3,0.49397]
[1762510668662,0.00457268,3281.8,3281.4,0.49395]
[1762510668961,0.49393,3281.6,3281.5,0.49394]
[1762510669163,0.49395,3281.4,3281.3,0.5626]
[1762510669355,0.49397,3281.3,3281.2,3.2078]
[1762510669557,0.49397,3281.3,3281.2,3.70178]
[1762510669862,0.49397,3281.3,3281.2,3.2078]
[1762510670059,0.49401,3281.1,3280.8,3.70183]
[1762510670360,0.49397,3281.4,3281.1,1.0566]
[1762510670558,0.00457268,3281.8,3281.2,3.2078]
[1762510670753,0.49397,3281.3,3281.2,3.70178]
[1762510671056,0.49397,3281.3,3281.2,4.26438]
[1762510671463,0.49397,3281.3,3281.2,3.7704]
[1762510672265,0.49397,3281.3,3281.2,3.2078]
[1762510674961,0.49406,3280.7,3280.6,1.05996344]
[1762510675162,0.49406,3280.7,3280.6,4.26776344]
[1762510675366,0.49405,3280.9,3280.8,1.05664]
[1762510675568,0.49402,3281.1,3281.0,0.49401]
[1762510675767,0.49402,3281.1,3281.0,3.70181]
[1762510676269,0.49402,3281.1,3281.0,3.2078]
[1762510677461,0.49402,3281.1,3281.0,3.7704]
[1762510677758,0.49402,3281.1,3281.0,3.2078]
[1762510679569,3.867,3281.5,3281.2,0.5626]
[1762510679768,0.49397,3281.3,3281.2,0.5626]
[1762510680362,3.867,3281.5,3281.2,0.5626]
[1762510680563,4.36094,3281.5,3281.4,0.5626]
[1762510681064,4.36094,3281.5,3279.9,3.2078]
[1762510681065,1.08861,3280.4,3279.9,3.2078]
[1762510681272,1.08861,3280.4,3279.6,0.49422]
[1762510681571,1.08861,3280.4,3280.3,2.68e-06]
[1762510681771,0.49423,3279.6,3279.5,3.2078]
[1762510682161,0.00249381,3279.6,3279.5,4.26780819]
[1762510682569,3.4669,3280.8,3280.2,0.49412]
[1762510682869,0.49408,3280.6,3280.4,0.4941]
[1762510683170,1.08873,3279.6,3279.5,0.00316819]
[1762510683368,0.49423,3279.6,3279.5,0.00316819]
[1762510683672,0.49730824,3279.6,3279.5,0.00316819]
[1762510685166,0.00307824,3279.6,3279.5,1.06000819]
[1762510685471,0.35337268,3280.8,3280.5,0.49408]
[1762510685472,0.49862268,3280.8,3280.5,0.49408]
[1762510685663,0.00457268,3280.8,3280.2,3.5596]
[1762510685868,0.00457268,3280.8,3280.2,4.05373]
[1762510686064,1.08862,3280.3,3280.2,3.2078]
[1762510686269,0.49412,3280.3,3280.2,3.2078]
[1762510686467,0.49421,3279.7,3279.6,0.3518]
[1762510686666,0.49421,3279.7,3279.5,0.00316819]
[1762510686667,0.49423,3279.6,3279.5,0.49740819]
[1762510686867,3.867,3280.2,3279.9,0.49418]
[1762510687171,3.867,3280.2,3279.5,0.35496819]
[1762510687172,0.49423,3279.6,3279.5,0.00316819]
[1762510687570,3.2078,3280.0,3279.5,0.00316819]
[1762510687868,1.08868,3279.9,3279.8,3.2078]
[1762510688069,0.49423,3279.6,3279.5,0.00316819]
[1762510688469,1.08873,3279.6,3279.5,0.00316819]
[1762510689365,0.49423,3279.6,3279.5,0.00316819]
[1762510689678,0.00389601,3280.3,3279.5,0.32336819]
[1762510689876,0.49418,3279.9,3279.7,0.4942]
[1762510690169,0.49421,3279.7,3279.5,0.00316819]
[1762510690974,0.49418,3279.9,3279.6,0.49422]
[1762510691172,0.49421,3279.8,3279.6,0.49422]
[1762510691380,0.00389601,3280.3,3279.6,0.3202]
[1762510691574,0.00389601,3280.3,3279.8,3.2078]
[1762510691874,0.5206,3279.9,3279.8,3.2078]
[1762510692070,0.00389601,3280.3,3279.7,3.2078]
[1762510692471,0.49419,3279.9,3279.7,3.70201]
[1762510692677,0.00389601,3280.3,3279.7,3.2078]
[1762510692874,0.49415,3280.1,3279.9,0.49417]
[1762510693073,0.49423,3279.6,3279.5,0.00316819]
[1762510694173,0.5206,3279.6,3279.5,0.00316819]
[1762510694875,0.8451,3279.6,3279.5,0.00316819]
[1762510695675,0.5206,3279.6,3279.5,0.00316819]
[1762510695876,0.49423,3279.6,3279.5,0.00316819]
[1762510696078,0.49423,3279.6,3279.5,0.49740819]
[1762510696277,0.49423,3279.6,3279.5,0.00316819]
[1762510696576,1.01483,3279.6,3279.5,0.00316819]
[1762510696784,1.33933,3279.6,3279.5,0.00316819]
[1762510696967,2.12212361,3279.6,3279.5,0.00316819]
[1762510697173,2.12212361,3279.6,3278.4,3.2078]
[1762510697174,0.695,3279.0,3278.4,3.2078]
[1762510697374,0.49439,3278.5,3278.4,3.2078]
[1762510697575,1.01499,3278.5,3278.4,3.2078]
[1762510698068,0.00457268,3279.0,3278.4,3.528]
[1762510698280,0.00457268,3279.0,3278.9,4.23173]
[1762510698779,0.49889268,3279.0,3278.9,3.2078]
[1762510699279,0.00457268,3279.0,3278.4,3.53110496]
[1762510699474,0.00457268,3279.0,3278.8,3.70215]
[1762510699675,0.00457268,3279.0,3278.9,1.02393]
[1762510699874,0.00457268,3279.0,3278.8,3.2078]
[1762510699875,0.49423,3279.6,3279.4,1.02386]
[1762510700070,0.49418,3279.9,3279.4,3.2078]
[1762510700277,0.49424,3279.5,3279.4,3.2078]
[1762510700476,0.49421,3279.8,3279.3,3.2078]
[1762510700781,3.2078,3280.0,3279.3,3.2078]
[1762510700988,0.49414,3280.2,3279.8,3.2078]
[1762510701187,0.00457268,3280.0,3279.9,1.02378]
[1762510701482,0.49402,3281.0,3280.7,0.49405]
[1762510701676,0.49402,3281.0,3280.2,0.3202]
[1762510701677,0.49402,3281.0,3280.8,0.49404]
[1762510701880,0.49399,3281.2,3280.9,0.49403]
[1762510702083,0.49408,3280.6,3280.5,3.7374]
[1762510702271,0.78650938,3280.6,3280.2,0.00457268]
[1762510702471,0.00327393,3280.6,3280.5,0.00374334]
[1762510702878,0.78658467,3280.6,3280.5,0.00374334]
[1762510703097,1.30718467,3280.6,3280.5,0.00374334]
[1762510703778,0.78658467,3280.6,3280.5,0.00374334]
[1762510704980,1.30718467,3280.6,3280.5,0.00374334]
[1762510706093,1.30718467,3280.6,3280.2,0.00457268]
[1762510706094,1.01472,3280.3,3280.2,0.00457268]
[1762510707084,1.01472,3280.3,3280.2,0.00703816]
[1762510707281,1.79896817,3280.3,3280.2,0.00703816]
[1762510707482,3.2078,3280.4,3280.2,0.00703816]
[1762510707483,0.49412,3280.4,3280.2,0.32723816]
[1762510707684,0.49412,3280.4,3280.2,0.00703816]
[1762510707991,0.00327393,3280.6,3280.2,0.00703816]
[1762510707992,0.49409,3280.5,3280.2,0.00703816]
[1762510708189,1.27852839,3280.4,3280.2,0.50116816]
[1762510708482,0.49409,3280.5,3280.3,0.49411]
[1762510708690,0.00327393,3280.6,3280.3,1.02371]
[1762510708877,0.49409,3280.5,3280.4,0.49411]
[1762510709080,1.27887979,3280.5,3280.4,0.49411]
[1762510709285,0.49411,3280.4,3280.2,0.50116816]
[1762510709482,0.00327393,3280.6,3280.3,3.2078]
[1762510709689,0.00327393,3280.6,3280.5,1.02369]
[1762510709992,0.49734393,3280.6,3280.5,1.02369]
[1762510710190,0.49734393,3280.6,3280.5,0.49409]
[1762510710382,0.49409,3280.5,3280.3,3.2078]
[1762510710593,0.49409,3280.5,3280.4,0.49411]
[1762510710786,0.49411,3280.4,3280.3,3.2078]
[1762510710986,0.00327393,3280.6,3280.2,0.32723816]
[1762510711187,0.49409,3280.5,3280.4,0.4941]
[1762510712086,0.00327393,3280.6,3280.2,3.53503816]
[1762510712383,0.00457268,3280.9,3280.8,1.02364]
[1762510712579,3.2078,3281.4,3281.2,1.02358]
[1762510712780,3.2078,3282.2,3281.4,0.3202]
[1762510712981,0.78503127,3282.1,3281.4,0.3202]
[1762510713186,3.70164,3282.2,3281.4,0.3202]
[1762510713485,3.2078,3282.6,3282.0,0.49386]
[1762510713690,0.78428517,3282.5,3281.4,3.528]
[1762510713888,0.49383,3282.2,3282.0,0.49386]
[1762510714090,0.49391,3281.7,3281.6,0.5296]
[1762510714388,0.49388,3282.0,3281.6,0.3202]
[1762510714588,0.49386,3282.0,3281.9,0.49388]
[1762510714994,0.49385,3282.1,3282.0,0.5296]
[1762510715291,0.49389,3281.9,3281.7,0.49391]
[1762510715682,0.49389,3281.9,3281.6,0.3202]
[1762510715880,3.2078,3282.5,3281.6,0.3202]
[1762510716084,0.49386,3282.0,3281.9,0.49387]
[1762510716289,3.20623268,3282.5,3281.7,0.00457268]
[1762510716492,0.4938,3282.4,3282.1,0.49385]
[1762510716694,0.49382,3282.3,3282.2,0.49383]
[1762510717583,0.49384,3282.2,3282.1,0.5296]
[1762510717783,3.20623268,3282.5,3282.2,0.5296]
[1762510717980,0.49379,3282.5,3282.4,0.5296]
[1762510718289,3.2078,3283.0,3282.4,0.5296]
[1762510718290,0.49378,3282.6,3282.4,0.4938]
[1762510718490,0.49379,3282.5,3282.4,0.4938]
[1762510718696,0.49382,3282.3,3282.2,3.2078]
[1762510719194,0.49382,3282.3,3282.2,3.6886]
[1762510719195,0.00340374,3282.3,3282.2,3.6886]
[1762510719489,0.00340374,3282.3,3282.2,4.18243]
[1762510720797,3.20500374,3283.0,3282.4,0.49379]
[1762510720998,0.49377,3282.6,3282.5,0.49378]
[1762510721194,0.49377,3282.6,3282.2,3.2078]
[1762510721195,0.97522,3282.3,3282.2,3.2078]
[1762510721504,0.49382,3282.3,3282.2,3.2078]
[1762510721801,0.49684039,3282.3,3282.2,3.21110527]
[1762510722703,0.97824039,3282.3,3282.2,3.21110527]
[1762510722997,0.49684039,3282.3,3282.2,3.21110527]
[1762510723201,0.49684039,3282.3,3282.2,4.18473527]
[1762510723399,0.00302039,3282.3,3282.2,4.18473527]
[1762510724701,0.00457268,3283.0,3282.9,0.49373]
[1762510724901,0.00457268,3283.0,3282.9,0.97353]
[1762510725406,0.49828268,3283.0,3282.9,0.97353]
[1762510725602,0.49828268,3283.0,3282.9,0.4798]
[1762510726008,0.49828268,3283.0,3282.9,0.97353]
[1762510726204,0.00457268,3283.0,3282.9,0.97353]
[1762510726403,0.49828268,3283.0,3282.9,0.97353]
[1762510726907,0.00457268,3283.0,3282.9,0.97353]
[1762510727107,0.00740451,3283.0,3282.9,0.97353]
[1762510727805,0.49364,3283.5,3283.4,0.4798]
[1762510728011,0.49366,3283.4,3283.2,0.2817]
[1762510728207,3.3666,3283.8,3283.0,0.4798]
[1762510728506,3.2078,3283.8,3283.4,0.49365]
[1762510728911,0.49364,3283.5,3283.4,0.49365]
[1762510729207,0.49364,3283.5,3283.4,0.4798]
[1762510729513,3.21518579,3283.8,3283.7,0.97341]
[1762510729816,0.50097579,3283.8,3283.7,0.4798]
[1762510730007,0.50097579,3283.8,3283.7,0.97341]
[1762510730312,0.00738579,3283.8,3283.7,0.97341]
[1762510730506,0.50097579,3283.8,3283.7,0.4798]
[1762510730708,0.49364,3283.5,3283.4,3.69217268]
[1762510730906,0.97504,3283.5,3283.4,0.00457268]
[1762510731612,0.49364,3283.5,3283.4,0.00457268]
[1762510733305,0.49364,3283.5,3283.4,0.48437268]
[1762510733501,0.49364,3283.5,3283.4,0.97802268]
[1762510733707,0.00738579,3283.8,3283.7,0.4798]
[1762510734516,0.49364,3283.5,3283.4,3.21237268]
[1762510734711,0.49364,3283.5,3283.4,3.70602268]
[1762510734906,0.50099579,3283.8,3283.7,0.97341]
[1762510735103,0.50099579,3283.8,3283.7,0.4798]
[1762510735511,0.49364,3283.5,3283.4,3.21237268]
[1762510735708,0.49364,3283.5,3283.4,0.97802268]
[1762510735907,1.05386445,3285.6,3285.5,0.49334]
[1762510736119,1.40016367,3286.6,3285.7,0.4798]
[1762510736415,0.4932,3286.5,3285.8,3.2078]
[1762510736619,3.2078,3287.1,3285.9,0.49327]
[1762510736813,3.2078,3287.1,3285.8,3.70108]
[1762510737012,0.49321,3286.4,3286.2,3.2078]
[1762510737215,0.49318,3286.6,3286.2,3.2078]
[1762510737417,0.49321,3286.4,3286.2,3.2078]
[1762510738521,0.49631779,3286.4,3286.2,3.21146002]
[1762510739421,3.6892,3286.3,3286.2,0.00366002]
[1762510739717,0.4814,3285.5,3285.4,3.2078]
[1762510739918,0.2849,3285.1,3285.0,3.2078]
[1762510740125,0.7663,3285.1,3285.0,3.2078]
[1762510740515,11.4927,3285.1,3284.2,3.2078]
[1762510740819,0.2849,3284.4,3284.3,0.00456545]
[1762510741726,0.2849,3284.4,3281.5,4.5647095]
[1762510741727,0.49365,3283.5,3283.3,3.2078]
[1762510741918,0.2849,3283.7,3283.3,3.2078]
[1762510742116,0.49365,3283.5,3283.3,3.2078]
[1762510742624,0.00359349,3283.5,3283.4,0.49365]
[1762510743122,0.00359349,3283.5,3283.3,3.21044412]
[1762510743612,0.00359349,3283.5,3283.3,3.70411412]
[1762510744018,0.49723349,3283.5,3283.3,3.70411412]
[1762510744421,0.49723349,3283.5,3283.3,3.21044412]
[1762510744723,0.4814,3283.4,3283.3,0.00264412]
[1762510745628,0.2849,3284.4,3284.2,0.49353]
[1762510745928,0.49345,3284.8,3284.1,3.2078]
[1762510746130,0.49349,3284.5,3284.2,0.49353]
[1762510746320,0.49349,3284.5,3284.1,3.2078]
[1762510746321,0.49347,3284.7,3284.1,3.2078]
[1762510746517,3.2078,3284.9,3284.1,3.2078]
[1762510746720,0.49351,3284.4,3284.2,0.49353]
[1762510747026,0.49346,3284.7,3284.5,0.49348]
[1762510747227,0.49347,3284.6,3284.5,3.2078]
[1762510748222,0.0033756,3284.9,3284.5,3.2078]
[1762510748416,0.49346,3284.7,3284.5,3.2078]
[1762510748824,0.49345,3284.8,3284.5,3.2078]
[1762510749027,0.0033756,3284.9,3284.5,3.2078]
[1762510749223,0.0033756,3284.9,3284.7,0.49346]
[1762510749825,0.49328,3285.9,3284.6,6.0888]
[1762510750132,0.49326,3286.0,3285.8,0.49329]
[1762510750324,3.2078,3286.1,3285.5,3.2078]
[1762510750529,0.49324,3286.2,3286.0,0.49326]
[1762510750733,3.4927,3286.5,3286.0,0.49326]
[1762510750931,0.49324,3286.2,3286.0,0.00316838]
[1762510751620,0.00328703,3286.5,3286.3,0.49321]
[1762510751826,0.00328703,3286.5,3286.4,3.2078]
[1762510752026,3.2078,3287.7,3286.4,3.2078]
[1762510752227,0.3283,3287.9,3286.0,0.00316838]
[1762510752228,0.3283,3287.9,3287.3,3.2078]
[1762510752438,0.3283,3287.9,3287.3,3.70086]
[1762510752633,0.49303,3287.6,3287.3,3.2078]
[1762510752822,0.49305,3287.5,3287.3,3.2078]
[1762510753021,0.00259217,3287.5,3287.3,3.2078]
[1762510753229,0.49563217,3287.5,3287.3,3.2078]
[1762510753432,0.49311,3287.0,3286.9,3.2078]
[1762510753732,0.00259217,3287.5,3286.9,3.2078]
[1762510753733,0.4931,3287.1,3286.9,3.2078]
[1762510754232,0.3283,3287.2,3286.9,3.2078]
[1762510754428,0.49307,3287.4,3287.1,0.49309]
[1762510754626,0.00259217,3287.5,3287.1,0.49309]
[1762510755028,0.49563217,3287.5,3287.3,3.70086]
[1762510755627,0.49563217,3287.5,3287.3,3.2078]
[1762510758035,0.49305,3287.4,3287.3,3.2078]
[1762510758236,0.3283,3287.2,3286.2,3.2078]
[1762510758436,3.2078,3287.0,3286.2,3.2078]
[1762510758736,3.2078,3287.0,3286.3,0.49322]
[1762510759031,0.49322,3286.3,3286.2,3.2078]
[1762510759729,0.49321,3286.4,3286.2,3.2078]
[1762510759922,0.49317,3286.6,3286.4,0.4932]
[1762510760124,3.2078,3287.0,3286.2,3.2078]
[1762510760328,0.49317,3286.7,3286.4,0.4932]
[1762510760527,0.3283,3287.2,3286.6,3.2078]
[1762510760737,0.3283,3287.2,3286.6,3.70097]
[1762510760936,0.3283,3287.2,3286.6,3.2078]
[1762510761136,0.49316,3286.7,3286.6,3.2078]
[1762510761632,0.49325,3286.1,3286.0,3.21096838]
[1762510761831,0.49325,3286.1,3286.0,0.00316838]
[1762510762926,3.2078,3286.4,3286.0,0.00316838]
[1762510763129,3.2078,3287.0,3286.1,0.49325]
[1762510763335,0.49323,3286.2,3286.1,0.49325]
[1762510764233,0.49322,3286.3,3286.2,0.49322]
[1762510764426,3.2078,3287.0,3286.2,0.49323]
[1762510764633,0.49322,3286.3,3286.2,0.49323]
[1762510765637,3.2078,3287.0,3286.3,0.4932]
[1762510765834,0.49321,3286.4,3286.3,0.49322]
[1762510766138,3.2078,3287.0,3286.0,3.21096838]
[1762510766329,0.49316,3286.7,3286.6,0.49317]
[1762510766635,3.2078,3287.0,3286.7,0.49316]
[1762510766930,3.2078,3287.0,3286.9,0.49313]
[1762510767127,0.49311,3287.0,3286.9,0.49313]
[1762510767935,0.49316,3286.7,3286.6,0.5139]
[1762510768134,3.2078,3287.4,3286.7,0.49315]
[1762510768437,3.2078,3287.4,3286.4,3.2078]
[1762510768734,0.49319,3286.5,3286.4,3.2078]
[1762510769234,0.3283,3287.2,3286.4,3.701]
[1762510769436,0.49317,3286.6,3286.5,0.49318]
[1762510769634,0.49319,3286.5,3286.4,3.701]
[1762510769833,0.49317,3286.7,3286.6,0.49317]
[1762510770239,0.49318,3286.6,3286.5,0.49319]
[1762510770737,0.49315,3286.8,3286.7,0.49314]
[1762510772041,0.3283,3287.2,3286.6,0.49317]
[1762510772239,0.49317,3286.7,3286.6,0.49317]
[1762510772437,3.2078,3287.4,3286.4,3.2078]
[1762510772741,0.49307,3287.3,3287.2,0.49306]
[1762510773039,0.49311,3287.1,3287.0,1.00701]
[1762510773441,0.49311,3287.1,3287.0,0.5139]
[1762510774142,0.49307,3287.4,3287.3,0.49307]
[1762510774742,0.4931,3287.2,3287.1,1.00699]
[1762510775144,0.00259217,3287.5,3286.9,3.2078]
[1762510775636,0.00259217,3287.5,3287.4,1.00695]
[1762510776141,0.49563217,3287.5,3287.4,0.5139]
[1762510776441,0.49307,3287.3,3287.2,1.00698]
[1762510776634,0.49306,3287.4,3287.3,0.49307]
[1762510776835,0.00259217,3287.5,3287.3,0.49307]
[1762510776836,0.00259217,3287.5,3287.4,0.49305]
[1762510777037,0.49563217,3287.5,3287.4,0.5139]
[1762510777237,0.00259217,3287.5,3287.4,1.00695]
[1762510778741,0.00259217,3287.5,3287.4,0.5139]
[1762510778938,0.00259217,3287.5,3287.4,1.00695]
[1762510779839,0.49563217,3287.5,3287.4,0.5139]
[1762510780033,0.49305,3287.4,3287.3,3.2078]
[1762510780630,0.49563217,3287.5,3287.0,3.2078]
[1762510780932,0.49305,3287.4,3287.3,1.02035]
[1762510781136,0.49305,3287.4,3287.3,4.22815]
[1762510781843,0.00259217,3287.5,3287.4,1.02035]
[1762510782642,0.00259217,3287.5,3287.4,1.17195]
[1762510782841,0.49293,3288.3,3287.7,0.5273]
[1762510783039,0.3283,3288.6,3287.8,3.2078]
[1762510783337,0.49298,3287.9,3287.8,3.2078]
[1762510783942,0.49531141,3287.9,3287.8,3.2078]
[1762510784238,0.49302,3287.6,3287.5,0.49760545]
[1762510784745,0.98102,3287.6,3287.5,0.00456545]
[1762510785045,8.98102,3287.6,3287.5,0.00456545]
[1762510786642,0.9811,3287.1,3287.0,3.2078]
[1762510786840,0.98116,3286.7,3286.6,3.2078]
[1762510787044,0.4932,3286.4,3286.3,3.70102]
[1762510787232,0.3022,3286.8,3286.3,3.2078]
[1762510787436,0.49311,3287.0,3286.8,0.49314]
[1762510787637,0.00456545,3287.2,3286.7,3.2078]
[1762510787941,0.49764545,3287.2,3287.1,0.4931]
[1762510788334,0.00456545,3287.2,3287.1,1.0204]
[1762510788542,0.00456545,3287.2,3287.1,4.2282]
[1762510788742,0.00456545,3287.2,3287.1,3.2078]
[1762510788937,0.00456545,3287.2,3287.1,3.7009]
[1762510789137,0.00456545,3287.2,3287.1,4.2282]
[1762510789644,0.49764545,3287.2,3287.1,3.7351]
[1762510790436,0.49764545,3287.2,3287.1,4.2282]
[1762510791044,0.49764545,3287.2,3287.1,3.7351]
[1762510791240,0.49764545,3287.2,3286.6,0.00456545]
[1762510791241,0.00456545,3287.2,3286.7,3.2078]
[1762510791446,0.49766545,3287.2,3287.1,3.2078]
[1762510792446,0.49325,3286.1,3285.8,3.2078]
[1762510792941,0.98125,3286.1,3285.8,3.2078]
[1762510793141,0.98125,3286.1,3285.4,3.2078]
[1762510793543,0.98125,3286.1,3285.7,0.00456545]
[1762510794749,0.49334,3285.5,3285.4,3.2078]
[1762510794949,0.3022,3285.6,3285.0,3.70121]
[1762510795148,0.4934,3285.2,3285.0,3.70121]
[1762510795348,0.4934,3285.2,3285.1,0.4934]
[1762510795750,0.49335,3285.5,3285.3,0.49337]
[1762510796043,0.49338,3285.2,3285.1,0.00353263]
[1762510796642,0.0076633,3285.5,3285.1,0.00353263]
[1762510796847,0.5010133,3285.5,3285.1,0.00353263]
[1762510797037,0.0076633,3285.5,3285.2,0.49338]
[1762510797241,0.0076633,3285.5,3285.1,0.00353263]
[1762510797444,0.49338,3285.2,3285.1,0.00353263]
[1762510797647,0.0076633,3285.5,3285.1,0.49693263]
[1762510798353,0.0076633,3285.5,3285.2,0.49338]
[1762510798651,0.0076633,3285.5,3285.1,0.00353263]
[1762510798652,0.49335,3285.4,3285.1,0.49692263]
[1762510798953,0.0076633,3285.5,3285.1,0.49692263]
[1762510799154,0.49338,3285.2,3285.1,0.00353263]
[1762510799543,0.0076633,3285.5,3285.1,0.00353263]
[1762510799751,0.49337,3285.3,3285.2,0.49337]
[1762510799950,0.49338,3285.2,3285.1,0.00353263]
[1762510800351,4.18918,3285.2,3285.1,0.00353263]
[1762510800546,0.488,3284.9,3284.2,3.2078]
[1762510800848,0.0076633,3285.5,3285.3,0.49336]
[1762510801040,0.0076633,3285.5,3284.8,3.2078]
[1762510801041,0.5010133,3285.5,3285.4,0.5273]
[1762510801349,0.0076633,3285.5,3285.3,3.2078]
[1762510801545,0.98135,3285.4,3285.3,0.00374776]
[1762510801945,0.0076633,3285.5,3285.4,1.02065]
[1762510802450,0.5010033,3285.5,3285.4,0.5273]
[1762510802646,0.0076633,3285.5,3285.3,0.49711776]
[1762510802848,0.0076633,3285.5,3285.4,0.49335]
[1762510803049,0.0076633,3285.5,3285.4,1.02065]
[1762510804052,0.0076633,3285.5,3285.4,0.5273]
[1762510804247,0.0076633,3285.5,3285.4,1.02065]
[1762510804658,0.5010033,3285.5,3285.4,0.5273]
[1762510805655,0.0076633,3285.5,3285.4,1.02065]
[1762510806452,0.49325,3286.1,3286.0,1.02055]
[1762510806649,0.49325,3286.1,3286.0,0.5273]
[1762510806951,3.2078,3286.6,3285.8,3.2078]
[1762510807148,3.2078,3286.6,3286.1,0.49324]
[1762510807357,0.49322,3286.3,3285.8,3.2078]
[1762510807556,0.49325,3286.2,3286.1,1.02054]
[1762510807753,0.49325,3286.2,3286.1,0.5273]
[1762510808059,0.49325,3286.2,3286.1,1.02055]
[1762510808449,0.49325,3286.2,3286.1,0.5273]
[1762510808747,0.00456545,3286.5,3285.6,0.3024]
[1762510808953,0.49325,3286.1,3285.8,3.2078]
[1762510809157,3.4241,3286.2,3285.5,0.49333]
[1762510809357,3.4241,3286.2,3285.4,3.2078]
[1762510809358,0.49334,3285.5,3285.4,3.2078]
[1762510809747,3.4241,3286.2,3285.4,3.2078]
[1762510809950,0.4933,3285.8,3285.7,0.9989]
[1762510810146,0.00456545,3286.5,3285.6,0.3124]
[1762510810352,0.49334,3285.5,3285.4,3.2078]
[1762510810551,0.49334,3285.5,3285.4,4.20675]
[1762510810750,0.49332,3285.7,3285.6,0.49331]
[1762510810958,0.49328,3285.9,3285.8,0.5056]
[1762510811157,0.00456545,3286.5,3285.4,3.2078]
[1762510811358,0.49332,3285.6,3285.5,0.99894]
[1762510811563,0.49331,3285.7,3285.6,0.99891]
[1762510811757,0.49331,3285.7,3285.6,0.5056]
[1762510811970,0.49334,3285.5,3285.4,3.2078]
[1762510812270,1.00805,3285.4,3285.3,0.00374776]
[1762510812563,0.49333,3285.6,3285.5,0.5056]
[1762510812868,1.00805,3285.4,3285.3,0.00374776]
[1762510815470,3.2078,3285.6,3285.3,0.00374776]
[1762510815662,0.49335,3285.4,3285.3,0.00374776]
[1762510815864,0.49335,3285.4,3285.3,0.50934776]
[1762510816667,0.49335,3285.4,3285.3,1.00271776]
[1762510817369,3.2078,3286.0,3285.5,0.5056]
[1762510817570,0.49332,3285.6,3285.5,0.5056]
[1762510817971,0.49332,3285.6,3285.5,0.99894]
[1762510818172,0.49332,3285.6,3285.5,0.5056]
[1762510818477,3.2078,3286.0,3285.5,0.5056]
[1762510818770,3.2078,3286.0,3285.6,0.3124]
[1762510819077,3.70108,3286.0,3285.9,0.99888]
[1762510819273,3.70108,3286.0,3285.9,0.5056]
[1762510819472,3.2078,3286.0,3285.6,0.3124]
[1762510819669,0.49325,3286.2,3285.6,0.3124]
[1762510819873,0.49325,3286.2,3286.1,0.5056]
[1762510820073,0.49325,3286.2,3286.1,0.99885]
[1762510820272,0.49325,3286.2,3286.1,0.5056]
[1762510820874,0.49325,3286.2,3286.1,0.99885]
[1762510821074,0.49325,3286.2,3286.1,0.5056]
[1762510821278,0.49328,3285.9,3285.8,3.2078]
[1762510821475,0.49328,3285.9,3285.8,3.7134]
[1762510822878,0.49328,3285.9,3285.8,4.20669]
[1762510823078,0.49328,3285.9,3285.8,3.7134]
[1762510823679,0.49328,3285.9,3285.8,4.20669]
[1762510824076,0.49328,3285.9,3285.8,3.7134]
[1762510824380,0.49329,3285.9,3285.8,0.49328]
[1762510824583,0.49328,3286.1,3286.0,1.25236]
[1762510824782,0.49328,3286.1,3286.0,0.7591]
[1762510825177,0.49328,3286.1,3286.0,1.25236]
[1762510825681,0.30156545,3286.5,3286.0,0.2535]
[1762510825876,0.30156545,3286.5,3285.8,3.2078]
[1762510826183,0.49325,3286.2,3286.1,0.49323]
[1762510826482,0.49325,3286.2,3286.1,0.99883]
[1762510827183,0.49325,3286.2,3286.1,0.5056]
[1762510827686,0.49325,3286.2,3286.1,0.99885]
[1762510827984,0.00456545,3286.5,3286.1,0.5056]
[1762510828185,0.4932,3286.4,3286.3,0.99881]
[1762510828982,0.4932,3286.4,3286.3,0.5056]
[1762510829685,0.4932,3286.4,3286.3,0.99882]
[1762510829880,0.49776545,3286.5,3286.4,0.9988]
[1762510830784,3.70088,3287.2,3287.1,0.5056]
[1762510830989,0.49305,3287.4,3287.3,0.5056]
[1762510831184,0.297,3288.5,3287.0,3.4514]
[1762510831383,0.49293,3288.3,3288.2,0.99852]
[1762510831684,0.49293,3288.3,3288.2,0.99853]
[1762510831889,0.4929,3288.4,3288.3,0.49291]
[1762510832083,0.0030457,3288.4,3288.3,0.49291]
[1762510832288,0.0030457,3288.4,3288.3,0.99851]
[1762510832780,0.4928,3289.1,3289.0,0.5056]
[1762510833081,3.2078,3289.4,3288.2,3.2103981]
[1762510833284,0.49287,3288.7,3288.4,0.4929]
[1762510833590,3.2078,3289.0,3288.2,3.2103981]
[1762510833795,0.4929,3288.4,3288.3,0.5056]
[1762510834280,0.00456545,3288.9,3288.6,0.818]
[1762510834481,0.49285,3288.8,3288.7,0.5056]
[1762510834683,0.4929,3288.5,3288.3,0.49291]
[1762510834991,0.49292,3288.4,3288.2,3.2103981]
[1762510835393,0.00456545,3288.9,3288.2,3.2103981]
[1762510835894,0.49289,3288.6,3288.4,0.4929]